[Event "Latvijas 2022. gada jauniešu čempionāta fināls"]
[Site "Riga, Latvia"]
[Date "2022.06.15"]
[Round "7.18"]
[White "Valdats, Reinis"]
[Black "Gaidis, Edvards"]
[Result "1-0"]
[TimeControl "3600+30"]
[WhiteElo "1488"]
[BlackElo "1190"]

1. e4 {[%clk 01:00:59]} {[%emt 00:02:27]} c6 {[%clk 01:00:57]} {[%emt
00:00:04]} 2. d4 {[%clk 01:01:27]} {[%emt 00:00:02]} d5 {[%clk 01:01:24]}
{[%emt 00:00:03]} 3. e5 {[%clk 01:01:53]} {[%emt 00:00:04]} Bf5 {[%clk
01:01:50]} {[%emt 00:00:04]} 4. h4 {[%clk 01:02:20]} {[%emt 00:00:03]} h5
{[%clk 01:02:04]} {[%emt 00:00:15]} 5. Nf3 {[%clk 01:02:15]} {[%emt 00:00:37]}
e6 {[%clk 01:02:22]} {[%emt 00:00:11]} 6. Bd3 {[%clk 01:02:32]} {[%emt
00:00:14]} Bxd3 {[%clk 01:02:30]} {[%emt 00:00:20]} 7. Qxd3 {[%clk 01:02:57]}
{[%emt 00:00:05]} c5 {[%clk 01:02:53]} {[%emt 00:00:08]} 8. c3 {[%clk
01:03:17]} {[%emt 00:00:10]} Nc6 {[%clk 01:03:09]} {[%emt 00:00:13]} 9. O-O
{[%clk 01:03:31]} {[%emt 00:00:16]} Nge7 {[%clk 01:03:16]} {[%emt 00:00:21]} 10.
Be3 {[%clk 00:59:25]} {[%emt 00:04:38]} cxd4 {[%clk 01:03:13]} {[%emt
00:00:32]} 11. cxd4 {[%clk 00:59:44]} {[%emt 00:00:13]} Nf5 {[%clk 01:03:36]}
{[%emt 00:00:05]} 12. a3 {[%clk 00:59:32]} {[%emt 00:00:45]} Nxh4 {[%clk
01:03:08]} {[%emt 00:00:57]} 13. Nxh4 {[%clk 00:58:31]} {[%emt 00:01:31]} Qxh4
{[%clk 01:03:23]} {[%emt 00:00:13]} 14. Nc3 {[%clk 00:58:20]} {[%emt 00:00:42]}
Be7 {[%clk 01:02:54]} {[%emt 00:01:00]} 15. Rac1 {[%clk 00:55:32]} {[%emt
00:03:18]} O-O {[%clk 01:03:00]} {[%emt 00:00:23]} 16. f4 {[%clk 00:54:14]}
{[%emt 00:01:49]} Na5 {[%clk 01:02:02]} {[%emt 00:01:27]} 17. f5 {[%clk
00:52:12]} {[%emt 00:02:33]} Nc4 {[%clk 01:02:05]} {[%emt 00:00:24]} 18. Rc2
{[%clk 00:46:23]} {[%emt 00:06:20]} Qg3 {[%clk 01:01:34]} {[%emt 00:01:01]} 19.
Re2 {[%clk 00:45:54]} {[%emt 00:01:00]} Bg5 {[%clk 01:01:02]} {[%emt 00:00:58]}
20. Rf3 {[%clk 00:45:21]} {[%emt 00:01:07]} Bxe3+ {[%clk 01:01:15]} {[%emt
00:00:14]} 21. Rexe3 {[%clk 00:45:48]} {[%emt 00:00:06]} Qg5 {[%clk 01:01:00]}
{[%emt 00:00:39]} 22. Re2 {[%clk 00:45:10]} {[%emt 00:01:16]} Qc1+ {[%clk
01:00:19]} {[%emt 00:01:07]} 23. Nd1 {[%clk 00:42:10]} {[%emt 00:03:33]} Rac8
{[%clk 00:57:26]} {[%emt 00:03:21]} 24. f6 {[%clk 00:41:49]} {[%emt 00:00:53]}
g6 {[%clk 00:57:04]} {[%emt 00:00:51]} 25. Rg3 {[%clk 00:40:07]} {[%emt
00:02:09]} Kh7 {[%clk 00:56:32]} {[%emt 00:01:05]} 26. Rh3 {[%clk 00:39:07]}
{[%emt 00:01:30]} Qg5 {[%clk 00:55:42]} {[%emt 00:01:17]} 27. Nf2 {[%clk
00:32:41]} {[%emt 00:07:00]} Rc6 {[%clk 00:54:58]} {[%emt 00:01:14]} 28. g4
{[%clk 00:31:42]} {[%emt 00:01:29]} Kg8 {[%clk 00:53:22]} {[%emt 00:02:04]} 29.
Kh1 {[%clk 00:29:26]} {[%emt 00:02:48]} hxg4 {[%clk 00:53:10]} {[%emt
00:00:40]} 30. Nxg4 {[%clk 00:26:31]} {[%emt 00:03:27]} Qxg4 {[%clk 00:52:24]}
{[%emt 00:01:15]} 31. Reh2 {[%clk 00:26:50]} {[%emt 00:00:12]} Nxe5 {[%clk
00:50:35]} {[%emt 00:02:19]} 32. Rh8# {[%clk 00:27:11]} {[%emt 00:00:08]} 1-0

[Event "Latvijas 2022. gada jauniešu čempionāta fināls"]
[Site "Riga, Latvia"]
[Date "2022.06.15"]
[Round "7.19"]
[White "Freibergs, Filips"]
[Black "Paikens, Reinis"]
[Result "0-1"]
[TimeControl "3600+30"]
[WhiteElo "1250"]
[BlackElo "1534"]

1. d4 {[%clk 01:00:59]} d5 {[%clk 01:00:12]} {[%emt 00:00:49]} 2. Nf3 {[%clk
01:01:12]} {[%emt 00:00:16]} Bf5 {[%clk 01:00:36]} {[%emt 00:00:05]} 3. e3
{[%clk 01:01:16]} {[%emt 00:00:26]} Nf6 {[%clk 01:00:54]} {[%emt 00:00:12]} 4.
Nbd2 {[%clk 01:01:35]} {[%emt 00:00:11]} e6 {[%clk 01:01:17]} {[%emt 00:00:08]}
5. b3 {[%clk 01:01:45]} {[%emt 00:00:20]} Bd6 {[%clk 01:01:08]} {[%emt
00:00:39]} 6. Bb2 {[%clk 01:01:54]} {[%emt 00:00:21]} Nbd7 {[%clk 01:01:26]}
{[%emt 00:00:12]} 7. Be2 {[%clk 01:01:59]} {[%emt 00:00:25]} a6 {[%clk
01:01:21]} {[%emt 00:00:35]} 8. Nh4 {[%clk 01:02:05]} {[%emt 00:00:23]} Bg6
{[%clk 01:01:30]} {[%emt 00:00:22]} 9. Nxg6 {[%clk 01:02:31]} {[%emt 00:00:05]}
hxg6 {[%clk 01:01:49]} {[%emt 00:00:11]} 10. f4 {[%clk 01:02:06]} {[%emt
00:00:54]} c6 {[%clk 01:01:24]} {[%emt 00:00:54]} 11. Nf3 {[%clk 01:01:45]}
{[%emt 00:00:45]} Ne4 {[%clk 01:01:36]} {[%emt 00:00:24]} 12. a3 {[%clk
01:01:01]} {[%emt 00:01:16]} Qa5+ {[%clk 01:01:05]} {[%emt 00:01:00]} 13. c3
{[%clk 00:59:11]} {[%emt 00:02:20]} Qd8 {[%clk 01:00:05]} {[%emt 00:01:31]} 14.
Bd3 {[%clk 00:57:51]} {[%emt 00:01:49]} Ndf6 {[%clk 00:59:42]} {[%emt
00:00:53]} 15. Ne5 {[%clk 00:55:56]} {[%emt 00:02:24]} Ng3 {[%clk 00:59:28]}
{[%emt 00:00:44]} 16. Rg1 {[%clk 00:55:19]} {[%emt 00:01:07]} Rxh2 {[%clk
00:59:25]} {[%emt 00:00:33]} 17. Qf3 {[%clk 00:54:37]} {[%emt 00:01:10]} Nfe4
{[%clk 00:59:11]} {[%emt 00:00:46]} 18. Qg4 {[%clk 00:45:49]} {[%emt 00:09:14]}
Bxe5 {[%clk 00:58:25]} {[%emt 00:01:22]} 19. fxe5 {[%clk 00:45:40]} {[%emt
00:00:38]} Rh4 {[%clk 00:58:19]} {[%emt 00:00:36]} 20. Qf3 {[%clk 00:46:00]}
{[%emt 00:00:09]} Qg5 {[%clk 00:58:15]} {[%emt 00:00:34]} 21. O-O-O {[%clk
00:45:27]} {[%emt 00:01:04]} c5 {[%clk 00:55:42]} {[%emt 00:03:05]} 22. c4
{[%clk 00:44:14]} {[%emt 00:01:42]} Rc8 {[%clk 00:55:44]} {[%emt 00:00:28]} 23.
Kb1 {[%clk 00:44:05]} {[%emt 00:00:39]} cxd4 {[%clk 00:51:21]} {[%emt
00:04:53]} 24. Bxd4 {[%clk 00:39:03]} {[%emt 00:05:31]} Nf5 {[%clk 00:50:44]}
{[%emt 00:01:08]} 25. Bb2 {[%clk 00:33:06]} {[%emt 00:06:25]} Qxe3 {[%clk
00:49:17]} {[%emt 00:01:58]} 26. cxd5 {[%clk 00:30:12]} {[%emt 00:03:24]} Nd2+
{[%clk 00:48:09]} {[%emt 00:01:38]} 27. Rxd2 {[%clk 00:30:03]} {[%emt
00:00:39]} Qxg1+ {[%clk 00:48:33]} {[%emt 00:00:07]} 28. Rd1 {[%clk 00:29:53]}
{[%emt 00:00:40]} Qe3 {[%clk 00:47:34]} {[%emt 00:01:27]} 29. d6 {[%clk
00:28:03]} {[%emt 00:02:22]} Qxf3 {[%clk 00:46:34]} {[%emt 00:01:30]} 30. gxf3
{[%clk 00:28:32]} Kd7 {[%clk 00:46:36]} {[%emt 00:00:28]} 31. Be4 {[%clk
00:28:35]} {[%emt 00:00:26]} Ne3 {[%clk 00:45:20]} {[%emt 00:01:47]} 32. Rd2
{[%clk 00:26:00]} {[%emt 00:02:53]} Rh1+ {[%clk 00:45:37]} {[%emt 00:00:24]} 33.
Ka2 {[%clk 00:26:23]} {[%emt 00:00:04]} Nd5 {[%clk 00:46:01]} {[%emt 00:00:09]}
34. a4 {[%clk 00:20:10]} {[%emt 00:06:43]} Rch8 {[%clk 00:43:33]} {[%emt
00:02:58]} 35. Rd4 {[%clk 00:20:09]} {[%emt 00:00:29]} R1h2 {[%clk 00:43:37]}
{[%emt 00:00:27]} 36. Ka3 {[%clk 00:20:37]} {[%emt 00:00:02]} Re2 {[%clk
00:42:32]} {[%emt 00:01:36]} 37. Rc4 {[%clk 00:18:36]} {[%emt 00:02:28]} b5
{[%clk 00:42:08]} {[%emt 00:00:57]} 38. Bxd5 {[%clk 00:17:17]} {[%emt
00:01:48]} bxc4 {[%clk 00:39:53]} {[%emt 00:02:45]} 39. Bxc4 {[%clk 00:17:44]}
{[%emt 00:00:03]} Rhh2 {[%clk 00:39:39]} {[%emt 00:00:44]} 40. Bd4 {[%clk
00:08:58]} {[%emt 00:09:16]} Ra2+ {[%clk 00:37:22]} {[%emt 00:02:45]} 41. Kb4
{[%clk 00:09:26]} {[%emt 00:00:03]} Rh4 {[%clk 00:37:28]} {[%emt 00:00:24]} 42.
Be3 {[%clk 00:08:30]} {[%emt 00:01:26]} Rxc4+ {[%clk 00:37:02]} {[%emt
00:00:57]} 43. Kxc4 {[%clk 00:04:56]} {[%emt 00:04:03]} Kc6 {[%clk 00:36:12]}
{[%emt 00:01:20]} 44. Kb4 {[%clk 00:05:18]} {[%emt 00:00:07]} Re2 {[%clk
00:36:35]} {[%emt 00:00:09]} 45. Bd4 {[%clk 00:04:22]} {[%emt 00:01:17]} Rd2
{[%clk 00:36:58]} {[%emt 00:00:15]} 46. Kc3 {[%clk 00:04:51]} {[%emt 00:00:02]}
Rd1 {[%clk 00:37:08]} {[%emt 00:00:18]} 47. b4 {[%clk 00:02:52]} {[%emt
00:02:31]} Ra1 {[%clk 00:36:25]} {[%emt 00:01:13]} 48. Kc4 {[%clk 00:02:24]}
{[%emt 00:00:58]} Rb1 {[%clk 00:35:12]} {[%emt 00:01:41]} 49. f4 {[%clk
00:01:16]} {[%emt 00:01:39]} Rc1+ {[%clk 00:33:33]} {[%emt 00:02:10]} 50. Bc3
{[%clk 00:01:06]} {[%emt 00:00:39]} f6 {[%clk 00:31:13]} {[%emt 00:02:53]} 51.
b5+ {[%clk 00:00:55]} {[%emt 00:00:40]} axb5+ {[%clk 00:31:09]} {[%emt
00:00:34]} 52. axb5+ {[%clk 00:01:23]} {[%emt 00:00:01]} Kb6 {[%clk 00:31:25]}
{[%emt 00:00:14]} 53. Kb4 {[%clk 00:01:51]} {[%emt 00:00:03]} Rb1+ {[%clk
00:29:37]} {[%emt 00:02:17]} 54. Ka4 {[%clk 00:02:17]} {[%emt 00:00:02]} Rxb5
{[%clk 00:29:44]} {[%emt 00:00:26]} 55. Bd4+ {[%clk 00:00:57]} {[%emt
00:01:50]} Kc6 {[%clk 00:29:47]} {[%emt 00:00:27]} 56. Bc3 {[%clk 00:00:41]}
{[%emt 00:00:45]} Rb7 {[%clk 00:29:03]} {[%emt 00:01:15]} 57. Ka5 {[%clk
00:00:46]} {[%emt 00:00:25]} fxe5 {[%clk 00:27:22]} {[%emt 00:02:11]} 58. Bxe5
{[%clk 00:00:58]} {[%emt 00:00:18]} Rb5+ {[%clk 00:27:12]} {[%emt 00:00:39]} 59.
Ka4 {[%clk 00:01:22]} {[%emt 00:00:06]} Rxe5 {[%clk 00:27:06]} {[%emt
00:00:37]} 60. fxe5 {[%clk 00:01:51]} {[%emt 00:00:01]} g5 {[%emt 00:02:16]}
0-1

[Event "Latvijas 2022. gada jauniešu čempionāta fināls"]
[Site "Riga, Latvia"]
[Date "2022.06.15"]
[Round "7.20"]
[White "Aleidzans, Vadims"]
[Black "Savicevs, Arsenijs"]
[Result "1-0"]
[TimeControl "3600+30"]
[WhiteElo "1367"]
[BlackElo "1961"]

1. e4 {[%clk 01:00:48]} {[%emt 00:00:11]} c5 {[%clk 01:00:26]} {[%emt
00:00:34]} 2. Nf3 {[%clk 01:01:11]} {[%emt 00:00:08]} e6 {[%clk 01:00:29]}
{[%emt 00:00:27]} 3. c4 {[%clk 01:01:15]} {[%emt 00:00:26]} Nc6 {[%clk
00:59:30]} {[%emt 00:01:28]} 4. d4 {[%clk 01:01:35]} {[%emt 00:00:10]} cxd4
{[%clk 00:59:53]} {[%emt 00:00:07]} 5. Nxd4 {[%clk 01:02:01]} {[%emt 00:00:04]}
Nf6 {[%clk 00:59:31]} {[%emt 00:00:52]} 6. Nc3 {[%clk 01:02:22]} {[%emt
00:00:09]} Bb4 {[%clk 00:59:41]} {[%emt 00:00:19]} 7. Nxc6 {[%clk 01:02:45]}
{[%emt 00:00:07]} bxc6 {[%clk 01:00:04]} {[%emt 00:00:07]} 8. Bd3 {[%clk
01:03:10]} {[%emt 00:00:06]} d5 {[%clk 00:57:48]} {[%emt 00:02:46]} 9. cxd5
{[%clk 01:02:51]} {[%emt 00:00:49]} cxd5 {[%clk 00:58:06]} {[%emt 00:00:11]} 10.
Qa4+ {[%clk 01:03:10]} {[%emt 00:00:12]} Bd7 {[%clk 00:57:04]} {[%emt
00:01:33]} 11. Qxb4 {[%clk 01:03:13]} {[%emt 00:00:27]} Rb8 {[%clk 00:57:05]}
{[%emt 00:00:30]} 12. Qa3 {[%clk 01:00:35]} {[%emt 00:03:07]} d4 {[%clk
00:49:00]} {[%emt 00:08:34]} 13. Ne2 {[%clk 01:00:32]} {[%emt 00:00:33]} e5
{[%clk 00:49:20]} {[%emt 00:00:11]} 14. O-O {[%clk 01:00:38]} {[%emt 00:00:24]}
Qe7 {[%clk 00:49:00]} {[%emt 00:00:49]} 15. Qxe7+ {[%clk 00:59:22]} {[%emt
00:01:46]} Kxe7 {[%clk 00:49:27]} {[%emt 00:00:03]} 16. b3 {[%clk 00:59:21]}
{[%emt 00:00:32]} Bc6 {[%clk 00:49:24]} {[%emt 00:00:32]} 17. f3 {[%clk
00:58:52]} {[%emt 00:00:59]} Nd7 {[%clk 00:49:30]} {[%emt 00:00:23]} 18. Ba3+
{[%clk 00:59:07]} {[%emt 00:00:16]} Ke6 {[%clk 00:49:12]} {[%emt 00:00:48]} 19.
Bc4+ {[%clk 00:56:50]} {[%emt 00:02:47]} Kf6 {[%clk 00:49:32]} {[%emt
00:00:09]} 20. Bd6 {[%clk 00:53:36]} {[%emt 00:03:45]} Rb7 {[%clk 00:45:03]}
{[%emt 00:04:59]} 21. f4 {[%clk 00:52:36]} {[%emt 00:01:30]} Nb6 {[%clk
00:45:06]} {[%emt 00:00:27]} 22. fxe5+ {[%clk 00:51:52]} {[%emt 00:01:15]} Kg6
{[%clk 00:45:22]} {[%emt 00:00:14]} 23. Bd3 {[%clk 00:46:30]} {[%emt 00:05:52]}
h5 {[%clk 00:43:39]} {[%emt 00:02:12]} 24. Nxd4 {[%clk 00:46:30]} {[%emt
00:00:31]} Bd7 {[%clk 00:44:01]} {[%emt 00:00:07]} 25. Ba6 {[%clk 00:46:47]}
{[%emt 00:00:13]} Rbb8 {[%clk 00:43:46]} {[%emt 00:00:45]} 26. Bxb8 {[%clk
00:47:05]} {[%emt 00:00:13]} Rxb8 {[%clk 00:44:06]} {[%emt 00:00:10]} 27. Rac1
{[%clk 00:47:14]} {[%emt 00:00:21]} Re8 {[%clk 00:44:22]} {[%emt 00:00:13]} 28.
Nf3 {[%clk 00:47:02]} {[%emt 00:00:43]} 1-0

[Event "Latvijas 2022. gada jauniešu čempionāta fināls"]
[Site "Riga, Latvia"]
[Date "2022.06.15"]
[Round "7.21"]
[White "Petrovs, Renars"]
[Black "Tabors, Emils"]
[Result "1-0"]
[TimeControl "3600+30"]
[WhiteElo "1327"]
[BlackElo "1813"]

1. d4 {[%clk 01:00:58]} {[%emt 00:00:01]} Nf6 {[%clk 01:00:54]} {[%emt
00:00:06]} 2. Bg5 {[%clk 01:01:21]} {[%emt 00:00:07]} Ne4 {[%clk 01:01:04]}
{[%emt 00:00:20]} 3. Bf4 {[%clk 01:01:45]} {[%emt 00:00:07]} c5 {[%clk
01:00:58]} {[%emt 00:00:36]} 4. c3 {[%clk 01:01:59]} {[%emt 00:00:16]} Qb6
{[%clk 01:00:01]} {[%emt 00:01:28]} 5. Qb3 {[%clk 01:00:16]} {[%emt 00:02:12]}
Qf6 {[%clk 00:52:34]} {[%emt 00:07:56]} 6. Be3 {[%clk 01:00:17]} {[%emt
00:00:29]} e6 {[%clk 00:41:44]} {[%emt 00:11:20]} 7. Nf3 {[%clk 00:58:22]}
{[%emt 00:02:25]} Nc6 {[%clk 00:40:18]} {[%emt 00:01:57]} 8. d5 {[%clk
00:53:12]} {[%emt 00:05:40]} Ne5 {[%clk 00:39:54]} {[%emt 00:00:53]} 9. Nxe5
{[%clk 00:51:42]} {[%emt 00:02:01]} Qxe5 {[%clk 00:40:18]} {[%emt 00:00:06]} 10.
dxe6 {[%clk 00:51:42]} {[%emt 00:00:29]} fxe6 {[%clk 00:40:04]} {[%emt
00:00:44]} 11. Nd2 {[%clk 00:50:55]} {[%emt 00:01:17]} Be7 {[%clk 00:32:16]}
{[%emt 00:08:18]} 12. Nf3 {[%clk 00:44:57]} {[%emt 00:06:29]} Qc7 {[%clk
00:31:14]} {[%emt 00:01:31]} 13. g3 {[%clk 00:44:09]} {[%emt 00:01:19]} d5
{[%clk 00:23:51]} {[%emt 00:07:53]} 14. Bg2 {[%clk 00:42:54]} {[%emt 00:01:45]}
Bd7 {[%clk 00:22:44]} {[%emt 00:01:37]} 15. O-O {[%clk 00:35:40]} {[%emt
00:07:44]} O-O {[%clk 00:19:35]} {[%emt 00:03:36]} 16. Rad1 {[%clk 00:35:09]}
{[%emt 00:01:03]} Bc6 {[%clk 00:16:04]} {[%emt 00:04:01]} 17. Bf4 {[%clk
00:34:59]} {[%emt 00:00:40]} Rxf4 {[%clk 00:13:29]} {[%emt 00:03:06]} 18. gxf4
{[%clk 00:35:12]} {[%emt 00:00:16]} Qxf4 {[%clk 00:13:55]} {[%emt 00:00:04]} 19.
e3 {[%clk 00:34:40]} {[%emt 00:01:02]} Qg4 {[%clk 00:13:39]} {[%emt 00:00:44]}
20. Ne5 {[%clk 00:34:46]} {[%emt 00:00:26]} Qg5 {[%clk 00:13:39]} {[%emt
00:00:28]} 21. f4 {[%clk 00:34:23]} {[%emt 00:00:53]} Qf5 {[%clk 00:13:06]}
{[%emt 00:01:04]} 22. Nxc6 {[%clk 00:34:32]} {[%emt 00:00:23]} bxc6 {[%clk
00:13:27]} {[%emt 00:00:08]} 23. Qb7 {[%clk 00:27:26]} {[%emt 00:07:36]} Re8
{[%clk 00:13:22]} {[%emt 00:00:34]} 24. Qxa7 {[%clk 00:26:15]} {[%emt
00:01:42]} Qg6 {[%clk 00:11:41]} {[%emt 00:02:10]} 25. Qa4 {[%clk 00:24:42]}
{[%emt 00:02:04]} e5 {[%clk 00:07:03]} {[%emt 00:05:08]} 26. Kh1 {[%clk
00:22:08]} {[%emt 00:03:03]} c4 {[%clk 00:04:19]} {[%emt 00:03:15]} 27. f5
{[%clk 00:21:12]} {[%emt 00:01:26]} Qg4 {[%clk 00:03:52]} {[%emt 00:00:57]} 28.
Rxd5 {[%clk 00:17:48]} {[%emt 00:03:54]} Bg5 {[%clk 00:02:45]} {[%emt
00:01:37]} 29. Rf3 {[%clk 00:05:50]} {[%emt 00:12:28]} Rf8 {[%clk 00:00:39]}
{[%emt 00:02:35]} 30. Rd1 {[%clk 00:04:20]} {[%emt 00:02:00]} Kh8 {[%clk
00:00:44]} {[%emt 00:00:25]} 31. Qc2 {[%clk 00:04:11]} {[%emt 00:00:39]} Bxe3
{[%clk 00:00:49]} {[%emt 00:00:26]} 32. Rxe3 {[%clk 00:03:21]} {[%emt
00:01:20]} Nf2+ {[%clk 00:01:17]} {[%emt 00:00:01]} 33. Qxf2 {[%clk 00:03:39]}
{[%emt 00:00:13]} Qxd1+ {[%clk 00:01:40]} {[%emt 00:00:08]} 34. Re1 {[%clk
00:04:00]} {[%emt 00:00:08]} Qa4 {[%clk 00:01:35]} {[%emt 00:00:35]} 35. Rxe5
{[%clk 00:03:16]} {[%emt 00:01:14]} Qxa2 {[%clk 00:01:34]} {[%emt 00:00:31]} 36.
Bxc6 {[%clk 00:03:33]} {[%emt 00:00:13]} Qa6 {[%clk 00:01:35]} {[%emt
00:00:27]} 37. Be4 {[%clk 00:02:38]} {[%emt 00:01:27]} Qa4 {[%clk 00:00:38]}
{[%emt 00:01:27]} 38. Kg2 {[%clk 00:02:34]} {[%emt 00:00:34]} Qd1 {[%clk
00:00:44]} {[%emt 00:00:24]} 39. Bf3 {[%clk 00:02:50]} {[%emt 00:00:14]} Qc1
{[%clk 00:00:47]} {[%emt 00:00:26]} 40. Qe2 {[%clk 00:00:53]} {[%emt 00:02:28]}
Qg5+ {[%clk 00:00:38]} {[%emt 00:00:38]} 41. Kf1 {[%clk 00:00:50]} {[%emt
00:00:33]} h6 {[%clk 00:00:50]} {[%emt 00:00:18]} 42. Re8 {[%clk 00:00:59]}
{[%emt 00:00:21]} Qxf5 {[%clk 00:01:12]} {[%emt 00:00:08]} 43. Rxf8+ {[%clk
00:01:10]} {[%emt 00:00:19]} Qxf8 {[%clk 00:01:41]} 44. Kf2 {[%clk 00:01:28]}
{[%emt 00:00:13]} Qb8 {[%clk 00:01:34]} {[%emt 00:00:37]} 45. Kg2 {[%clk
00:01:40]} {[%emt 00:00:18]} Qb5 {[%clk 00:01:29]} {[%emt 00:00:34]} 46. Qd2
{[%clk 00:01:53]} {[%emt 00:00:18]} Qb6 {[%clk 00:01:48]} {[%emt 00:00:10]} 47.
Be4 {[%clk 00:01:38]} {[%emt 00:00:45]} Qb8 {[%clk 00:01:36]} {[%emt 00:00:43]}
48. Kf3 {[%clk 00:01:34]} {[%emt 00:00:34]} Qf8+ {[%clk 00:01:41]} {[%emt
00:00:23]} 49. Qf4 {[%clk 00:01:55]} {[%emt 00:00:10]} Qd8 {[%clk 00:02:04]}
{[%emt 00:00:07]} 50. Ke2 {[%clk 00:01:51]} {[%emt 00:00:34]} 1-0

[Event "Latvijas 2022. gada jauniešu čempionāta fināls"]
[Site "Riga, Latvia"]
[Date "2022.06.15"]
[Round "7.22"]
[White "Springis, Jevgenijs"]
[Black "Adamovics, Aleksejs"]
[Result "1-0"]
[TimeControl "3600+30"]
[WhiteElo "1975"]
[BlackElo "1922"]

1. e4 {[%clk 01:00:55]} {[%emt 00:00:05]} c5 {[%clk 01:00:53]} {[%emt
00:00:06]} 2. Nf3 {[%clk 01:01:19]} {[%emt 00:00:06]} Nc6 {[%clk 01:01:16]}
{[%emt 00:00:08]} 3. d4 {[%clk 01:01:44]} {[%emt 00:00:05]} cxd4 {[%clk
01:01:41]} {[%emt 00:00:05]} 4. Nxd4 {[%clk 01:02:10]} {[%emt 00:00:03]} g6
{[%clk 01:01:54]} {[%emt 00:00:17]} 5. c4 {[%clk 01:02:31]} {[%emt 00:00:08]}
Bg7 {[%clk 01:02:13]} {[%emt 00:00:11]} 6. Nc2 {[%clk 01:02:54]} {[%emt
00:00:08]} Nf6 {[%clk 01:02:11]} {[%emt 00:00:32]} 7. Nc3 {[%clk 01:03:17]}
{[%emt 00:00:07]} O-O {[%clk 01:02:19]} {[%emt 00:00:22]} 8. Be2 {[%clk
01:03:32]} {[%emt 00:00:15]} d6 {[%clk 01:02:29]} {[%emt 00:00:20]} 9. Be3
{[%clk 01:03:30]} {[%emt 00:00:32]} Bd7 {[%clk 00:59:01]} {[%emt 00:03:57]} 10.
O-O {[%clk 01:03:22]} {[%emt 00:00:39]} Rc8 {[%clk 00:57:46]} {[%emt 00:01:45]}
11. h3 {[%clk 00:59:54]} {[%emt 00:03:58]} Na5 {[%clk 00:47:19]} {[%emt
00:10:56]} 12. Na3 {[%clk 00:54:20]} {[%emt 00:06:06]} b6 {[%clk 00:43:06]}
{[%emt 00:04:43]} 13. Qd2 {[%clk 00:46:34]} {[%emt 00:08:15]} Bc6 {[%clk
00:38:40]} {[%emt 00:04:56]} 14. b4 {[%clk 00:43:25]} {[%emt 00:03:39]} Nb7
{[%clk 00:38:18]} {[%emt 00:00:52]} 15. f3 {[%clk 00:43:27]} {[%emt 00:00:28]}
h5 {[%clk 00:23:35]} {[%emt 00:15:12]} 16. Rfd1 {[%clk 00:37:15]} {[%emt
00:06:43]} a5 {[%clk 00:20:10]} {[%emt 00:03:56]} 17. Rab1 {[%clk 00:36:53]}
{[%emt 00:00:52]} axb4 {[%clk 00:19:40]} {[%emt 00:01:00]} 18. Rxb4 {[%clk
00:37:16]} {[%emt 00:00:06]} Nd7 {[%clk 00:19:20]} {[%emt 00:00:50]} 19. Nab5
{[%clk 00:34:57]} {[%emt 00:02:49]} Ra8 {[%clk 00:18:16]} {[%emt 00:01:32]} 20.
Nd4 {[%clk 00:32:56]} {[%emt 00:02:32]} Na5 {[%clk 00:16:34]} {[%emt 00:02:12]}
21. Rdb1 {[%clk 00:32:09]} {[%emt 00:01:18]} Rb8 {[%clk 00:15:56]} {[%emt
00:01:08]} 22. Nd5 {[%clk 00:30:26]} {[%emt 00:02:13]} e6 {[%clk 00:14:48]}
{[%emt 00:01:38]} 23. Nc3 {[%clk 00:30:07]} {[%emt 00:00:49]} Qe7 {[%clk
00:11:04]} {[%emt 00:04:14]} 24. Na4 {[%clk 00:19:22]} {[%emt 00:11:16]} Bxa4
{[%clk 00:10:40]} {[%emt 00:00:54]} 25. Rxa4 {[%clk 00:19:50]} {[%emt
00:00:02]} Rfc8 {[%clk 00:07:25]} {[%emt 00:03:44]} 26. Rab4 {[%clk 00:11:40]}
{[%emt 00:08:41]} Nc6 {[%clk 00:07:10]} {[%emt 00:00:44]} 27. Nxc6 {[%clk
00:11:48]} {[%emt 00:00:22]} Rxc6 {[%clk 00:07:35]} {[%emt 00:00:05]} 28. f4
{[%clk 00:08:33]} {[%emt 00:03:46]} Nc5 {[%clk 00:06:03]} {[%emt 00:02:02]} 29.
Bf3 {[%clk 00:08:44]} {[%emt 00:00:19]} e5 {[%clk 00:06:17]} {[%emt 00:00:16]}
30. Qd5 {[%clk 00:08:36]} {[%emt 00:00:38]} Qd7 {[%clk 00:05:33]} {[%emt
00:01:12]} 31. f5 {[%clk 00:08:30]} {[%emt 00:00:37]} Kh7 {[%clk 00:05:26]}
{[%emt 00:00:38]} 32. g4 {[%clk 00:06:46]} {[%emt 00:02:15]} Na6 {[%clk
00:02:37]} {[%emt 00:03:19]} 33. R4b2 {[%clk 00:05:02]} {[%emt 00:02:10]} Nc5
{[%clk 00:02:23]} {[%emt 00:00:46]} 34. fxg6+ {[%clk 00:04:46]} {[%emt
00:00:47]} fxg6 {[%clk 00:02:41]} {[%emt 00:00:13]} 35. gxh5 {[%clk 00:05:07]}
{[%emt 00:00:08]} gxh5 {[%clk 00:01:59]} {[%emt 00:01:11]} 36. Kh2 {[%clk
00:04:57]} {[%emt 00:00:41]} Rf8 {[%clk 00:01:06]} {[%emt 00:01:23]} 37. Bxh5
{[%clk 00:04:59]} {[%emt 00:00:27]} Na4 {[%clk 00:01:11]} {[%emt 00:00:26]} 38.
Rc2 {[%clk 00:03:52]} {[%emt 00:01:36]} Rc7 {[%clk 00:00:33]} {[%emt 00:01:09]}
39. Rg1 {[%clk 00:03:57]} {[%emt 00:00:24]} Qe7 {[%clk 00:00:40]} {[%emt
00:00:24]} 40. Bg6+ {[%clk 00:04:00]} {[%emt 00:00:26]} Kh8 {[%clk 00:01:06]}
{[%emt 00:00:05]} 41. Rg5 {[%clk 00:04:18]} {[%emt 00:00:12]} Bh6 {[%clk
00:00:49]} {[%emt 00:00:47]} 42. Rh5 {[%clk 00:04:43]} {[%emt 00:00:05]} Kg7
{[%clk 00:01:01]} {[%emt 00:00:18]} 43. Rg2 {[%clk 00:04:29]} {[%emt 00:00:43]}
Bxe3 {[%clk 00:00:31]} {[%emt 00:01:00]} 44. Bf5+ {[%clk 00:04:53]} {[%emt
00:00:05]} Bg5 {[%clk 00:00:31]} {[%emt 00:00:30]} 45. Rgxg5+ {[%clk 00:05:15]}
{[%emt 00:00:09]} 1-0